[Event "NJSK 2022 Jeugd C"]
[Site "Almelo, Netherlands"]
[Date "2022.05.04"]
[Round "5.5"]
[White "Madularea, David"]
[Black "Dekker, Thiemen"]
[Result "1/2-1/2"]
[TimeControl "90min + 30sec/move"]
[WhiteElo "1774"]
[BlackElo "1935"]

1. e4 {[%clk 01:30:57]} {[%emt 00:00:02]} e5 {[%clk 01:30:57]} {[%emt
00:00:05]} 2. Nf3 {[%clk 01:31:22]} {[%emt 00:00:04]} Nc6 {[%clk 01:31:24]}
{[%emt 00:00:03]} 3. Bb5 {[%clk 01:31:46]} {[%emt 00:00:06]} f5 {[%clk
01:31:51]} {[%emt 00:00:04]} 4. Nc3 {[%clk 01:31:11]} {[%emt 00:01:04]} fxe4
{[%clk 01:32:07]} {[%emt 00:00:14]} 5. Nxe4 {[%clk 01:27:19]} {[%emt 00:04:21]}
Nf6 {[%clk 01:32:30]} {[%emt 00:00:08]} 6. Qe2 {[%clk 01:25:49]} {[%emt
00:02:00]} d5 {[%clk 01:32:48]} {[%emt 00:00:12]} 7. Nxf6+ {[%clk 01:26:02]}
{[%emt 00:00:17]} gxf6 {[%clk 01:33:11]} {[%emt 00:00:08]} 8. O-O {[%clk
01:24:57]} {[%emt 00:01:34]} Qd6 {[%clk 01:23:28]} {[%emt 00:10:14]} 9. d4
{[%clk 01:20:02]} {[%emt 00:05:23]} e4 {[%clk 01:23:51]} {[%emt 00:00:08]} 10.
Nh4 {[%clk 01:16:40]} {[%emt 00:03:51]} Be6 {[%clk 01:24:09]} {[%emt 00:00:13]}
11. g3 {[%clk 01:13:55]} {[%emt 00:03:14]} O-O-O {[%clk 01:21:41]} {[%emt
00:02:59]} 12. c3 {[%clk 01:12:36]} {[%emt 00:01:48]} Be7 {[%clk 01:19:11]}
{[%emt 00:03:01]} 13. b4 {[%clk 01:03:22]} {[%emt 00:09:45]} Bh3 {[%clk
01:12:41]} {[%emt 00:07:00]} 14. Ng2 {[%clk 00:56:03]} {[%emt 00:07:49]} h5
{[%clk 01:10:22]} {[%emt 00:02:49]} 15. a4 {[%clk 00:45:52]} {[%emt 00:10:40]}
h4 {[%clk 01:03:07]} {[%emt 00:07:45]} 16. Bf4 {[%clk 00:39:54]} {[%emt
00:06:27]} Qe6 {[%clk 01:01:06]} {[%emt 00:02:32]} 17. Bxc6 {[%clk 00:37:51]}
{[%emt 00:02:34]} Qxc6 {[%clk 00:55:58]} {[%emt 00:05:37]} 18. b5 {[%clk
00:37:53]} {[%emt 00:00:28]} Qe6 {[%clk 00:52:54]} {[%emt 00:03:35]} 19. a5
{[%clk 00:36:33]} {[%emt 00:01:50]} Bd6 {[%clk 00:41:26]} {[%emt 00:11:58]} 20.
Bxd6 {[%clk 00:34:33]} {[%emt 00:02:29]} Qxd6 {[%clk 00:39:42]} {[%emt
00:02:14]} 21. Rfb1 {[%clk 00:29:09]} {[%emt 00:05:53]} Rdg8 {[%clk 00:30:35]}
{[%emt 00:09:38]} 22. b6 {[%clk 00:20:17]} {[%emt 00:09:22]} a6 {[%clk
00:27:08]} {[%emt 00:03:58]} 23. bxc7 {[%clk 00:17:10]} {[%emt 00:03:37]} Bxg2
{[%clk 00:23:59]} {[%emt 00:03:38]} 24. Kxg2 {[%clk 00:17:19]} {[%emt
00:00:21]} hxg3 {[%clk 00:24:21]} {[%emt 00:00:09]} 25. hxg3 {[%clk 00:17:37]}
{[%emt 00:00:11]} Qxc7 {[%clk 00:23:10]} {[%emt 00:01:41]} 26. Rh1 {[%clk
00:15:56]} {[%emt 00:02:11]} Rxh1 {[%clk 00:22:23]} {[%emt 00:01:18]} 27. Rxh1
{[%clk 00:16:21]} {[%emt 00:00:04]} Qxa5 {[%clk 00:18:32]} {[%emt 00:04:22]} 28.
Qh5 {[%clk 00:13:56]} {[%emt 00:02:54]} Kb8 {[%clk 00:14:24]} {[%emt 00:04:39]}
29. Qf7 {[%clk 00:13:12]} {[%emt 00:01:13]} Rc8 {[%clk 00:13:30]} {[%emt
00:01:23]} 30. Rb1 {[%clk 00:10:23]} {[%emt 00:03:20]} b5 {[%clk 00:10:15]}
{[%emt 00:03:45]} 31. Qxf6 {[%clk 00:09:44]} {[%emt 00:01:08]} Ka7 {[%clk
00:07:54]} {[%emt 00:02:52]} 1/2-1/2

[Event "NJSK 2022 Jeugd C"]
[Site "Almelo, Netherlands"]
[Date "2022.05.04"]
[Round "5.6"]
[White "Kurt, Sascha"]
[Black "Folkers, Sono"]
[Result "1-0"]
[TimeControl "90min + 30sec/move"]
[WhiteElo "1834"]
[BlackElo "1519"]

1. e4 {[%clk 01:30:58]} {[%emt 00:00:02]} e6 {[%clk 01:30:55]} {[%emt
00:00:05]} 2. d4 {[%clk 01:31:24]} {[%emt 00:00:04]} d5 {[%clk 01:31:20]}
{[%emt 00:00:04]} 3. Nd2 {[%clk 01:31:51]} {[%emt 00:00:04]} Nf6 {[%clk
01:31:10]} {[%emt 00:00:40]} 4. e5 {[%clk 01:32:17]} {[%emt 00:00:04]} Nfd7
{[%clk 01:31:35]} {[%emt 00:00:06]} 5. f4 {[%clk 01:32:42]} {[%emt 00:00:04]}
c5 {[%clk 01:31:54]} {[%emt 00:00:11]} 6. c3 {[%clk 01:33:08]} {[%emt
00:00:05]} Nc6 {[%clk 01:32:05]} {[%emt 00:00:19]} 7. Ndf3 {[%clk 01:33:32]}
{[%emt 00:00:06]} Qb6 {[%clk 01:31:56]} {[%emt 00:00:38]} 8. g3 {[%clk
01:33:56]} {[%emt 00:00:06]} cxd4 {[%clk 01:31:27]} {[%emt 00:00:59]} 9. cxd4
{[%clk 01:33:54]} {[%emt 00:00:32]} Bb4+ {[%clk 01:31:39]} {[%emt 00:00:19]} 10.
Kf2 {[%clk 01:34:19]} {[%emt 00:00:04]} f6 {[%clk 01:29:46]} {[%emt 00:02:23]}
11. Be3 {[%clk 01:31:14]} {[%emt 00:03:35]} Qc7 {[%clk 01:26:45]} {[%emt
00:03:30]} 12. Bd3 {[%clk 01:28:55]} {[%emt 00:02:49]} fxe5 {[%clk 01:25:18]}
{[%emt 00:01:58]} 13. Nxe5 {[%clk 01:27:37]} {[%emt 00:01:48]} Ndxe5 {[%clk
01:21:39]} {[%emt 00:04:08]} 14. fxe5 {[%clk 01:26:43]} {[%emt 00:01:25]} Rf8+
{[%clk 01:20:38]} {[%emt 00:01:31]} 15. Kg2 {[%clk 01:26:50]} {[%emt 00:00:22]}
g6 {[%clk 01:20:55]} {[%emt 00:00:14]} 16. Nf3 {[%clk 01:25:40]} {[%emt
00:01:40]} Bd7 {[%clk 01:19:25]} {[%emt 00:02:01]} 17. Ng5 {[%clk 01:24:41]}
{[%emt 00:01:28]} O-O-O {[%clk 01:01:57]} {[%emt 00:17:58]} 18. Nxh7 {[%clk
01:24:21]} {[%emt 00:00:51]} Rg8 {[%clk 01:01:28]} {[%emt 00:00:58]} 19. Nf6
{[%clk 01:24:41]} {[%emt 00:00:10]} Rg7 {[%clk 01:00:42]} {[%emt 00:01:16]} 20.
Bh6 {[%clk 01:24:49]} {[%emt 00:00:22]} Re7 {[%clk 00:56:55]} {[%emt 00:04:17]}
21. a3 {[%clk 01:25:15]} {[%emt 00:00:04]} Ba5 {[%clk 00:57:09]} {[%emt
00:00:16]} 22. b4 {[%clk 01:25:43]} {[%emt 00:00:02]} Bb6 {[%clk 00:54:13]}
{[%emt 00:03:26]} 23. Rc1 {[%clk 01:24:46]} {[%emt 00:01:26]} Bxd4 {[%clk
00:52:22]} {[%emt 00:02:22]} 24. Nxd7 {[%clk 01:23:36]} {[%emt 00:01:40]} Qxd7
{[%clk 00:50:39]} {[%emt 00:02:13]} 25. b5 {[%clk 01:23:46]} {[%emt 00:00:20]}
Rf7 {[%emt 00:01:27]} 26. Bf4 {[%clk 01:23:41]} g5 {[%clk 00:49:24]} {[%emt
00:01:22]} 27. bxc6 {[%clk 01:24:06]} {[%emt 00:00:06]} Qe7 {[%clk 00:39:51]}
{[%emt 00:10:03]} 28. cxb7+ {[%clk 01:24:30]} {[%emt 00:00:06]} Kxb7 {[%clk
00:39:56]} {[%emt 00:00:23]} 29. Rb1+ {[%clk 01:23:34]} {[%emt 00:01:28]} Bb6
{[%clk 00:38:37]} {[%emt 00:01:50]} 30. Be3 {[%clk 01:21:55]} {[%emt 00:02:04]}
Rdf8 {[%clk 00:36:14]} {[%emt 00:02:57]} 31. Qb3 {[%clk 01:20:51]} {[%emt
00:01:34]} Rf2+ {[%clk 00:35:45]} {[%emt 00:00:59]} 32. Kg1 {[%clk 01:21:03]}
{[%emt 00:00:17]} Qf7 {[%clk 00:34:30]} {[%emt 00:01:46]} 33. Bxb6 {[%clk
01:19:36]} {[%emt 00:01:57]} Ka8 {[%clk 00:31:51]} {[%emt 00:03:09]} 34. Qa4
{[%clk 01:16:36]} {[%emt 00:03:30]} g4 {[%clk 00:24:27]} {[%emt 00:07:53]} 35.
Qc6+ {[%clk 01:16:19]} {[%emt 00:00:48]} 1-0

[Event "NJSK 2022 Jeugd C"]
[Site "Almelo, Netherlands"]
[Date "2022.05.04"]
[Round "5.7"]
[White "Fallaux, Storm"]
[Black "Zecha, Oscar"]
[Result "1-0"]
[TimeControl "90min + 30sec/move"]
[WhiteElo "1459"]
[BlackElo "1826"]

1. e4 {[%clk 01:30:58]} {[%emt 00:00:02]} e5 {[%clk 01:30:59]} {[%emt
00:00:02]} 2. Nf3 {[%clk 01:31:22]} {[%emt 00:00:05]} Nc6 {[%clk 01:31:28]}
{[%emt 00:00:01]} 3. Bc4 {[%clk 01:31:46]} {[%emt 00:00:07]} Bc5 {[%clk
01:31:56]} {[%emt 00:00:02]} 4. c3 {[%clk 01:32:11]} {[%emt 00:00:05]} Nf6
{[%clk 01:32:22]} {[%emt 00:00:03]} 5. d3 {[%clk 01:32:37]} {[%emt 00:00:05]}
d6 {[%clk 01:32:46]} {[%emt 00:00:06]} 6. O-O {[%clk 01:32:55]} {[%emt
00:00:12]} O-O {[%clk 01:33:06]} {[%emt 00:00:09]} 7. Be3 {[%clk 01:32:55]}
{[%emt 00:00:31]} Bb6 {[%clk 01:22:17]} {[%emt 00:11:18]} 8. Re1 {[%clk
01:32:16]} {[%emt 00:01:09]} Ne7 {[%clk 01:20:50]} {[%emt 00:01:57]} 9. Nbd2
{[%clk 01:24:11]} {[%emt 00:08:35]} Ng6 {[%clk 01:20:07]} {[%emt 00:01:13]} 10.
h3 {[%clk 01:24:13]} {[%emt 00:00:29]} c6 {[%clk 01:08:44]} {[%emt 00:11:53]}
11. d4 {[%clk 01:22:40]} {[%emt 00:02:03]} exd4 {[%clk 01:06:40]} {[%emt
00:02:33]} 12. cxd4 {[%clk 01:22:49]} {[%emt 00:00:22]} d5 {[%clk 01:06:14]}
{[%emt 00:00:56]} 13. exd5 {[%clk 01:19:23]} {[%emt 00:03:55]} Nxd5 {[%clk
01:01:47]} {[%emt 00:04:57]} 14. Bxd5 {[%clk 01:17:44]} {[%emt 00:02:10]} Qxd5
{[%clk 01:01:16]} {[%emt 00:01:01]} 15. Qb3 {[%clk 01:15:50]} {[%emt 00:02:23]}
Be6 {[%clk 00:59:09]} {[%emt 00:02:37]} 16. Qxd5 {[%clk 01:15:22]} {[%emt
00:00:58]} Bxd5 {[%clk 00:59:21]} {[%emt 00:00:18]} 17. Ne5 {[%clk 01:14:12]}
{[%emt 00:01:40]} Rad8 {[%clk 00:52:42]} {[%emt 00:07:09]} 18. Nxg6 {[%clk
01:11:47]} {[%emt 00:02:55]} hxg6 {[%clk 00:52:32]} {[%emt 00:00:40]} 19. b3
{[%clk 01:10:27]} {[%emt 00:01:51]} Be6 {[%clk 00:40:14]} {[%emt 00:12:47]} 20.
Nf3 {[%clk 01:09:40]} {[%emt 00:01:18]} Rd5 {[%clk 00:39:30]} {[%emt 00:01:13]}
21. a4 {[%clk 01:02:23]} {[%emt 00:07:47]} a6 {[%clk 00:36:48]} {[%emt
00:03:13]} 22. b4 {[%clk 00:59:14]} {[%emt 00:03:38]} Rfd8 {[%clk 00:34:41]}
{[%emt 00:02:37]} 23. Rac1 {[%clk 00:56:08]} {[%emt 00:03:35]} f6 {[%clk
00:33:34]} {[%emt 00:01:38]} 24. Kh2 {[%clk 00:51:46]} {[%emt 00:04:52]} Kf7
{[%clk 00:33:16]} {[%emt 00:00:49]} 25. g4 {[%clk 00:50:15]} {[%emt 00:02:01]}
Rh8 {[%clk 00:32:44]} {[%emt 00:01:02]} 26. Kg2 {[%clk 00:49:22]} {[%emt
00:01:22]} Rdd8 {[%clk 00:31:31]} {[%emt 00:01:43]} 27. d5 {[%clk 00:49:04]}
{[%emt 00:00:48]} Bxd5 {[%clk 00:24:50]} {[%emt 00:07:11]} 28. Bxb6 {[%clk
00:49:25]} {[%emt 00:00:10]} Rc8 {[%clk 00:23:49]} {[%emt 00:01:31]} 29. Re3
{[%clk 00:48:14]} {[%emt 00:01:40]} Rh7 {[%clk 00:22:08]} {[%emt 00:02:11]} 30.
Bc5 {[%clk 00:47:41]} {[%emt 00:01:03]} g5 {[%clk 00:22:00]} {[%emt 00:00:38]}
31. Rh1 {[%clk 00:46:49]} {[%emt 00:01:22]} Rch8 {[%clk 00:22:10]} {[%emt
00:00:20]} 32. Kg3 {[%clk 00:46:39]} {[%emt 00:00:40]} Ra8 {[%emt 00:03:37]}
1-0

[Event "NJSK 2022 Jeugd C"]
[Site "Almelo, Netherlands"]
[Date "2022.05.04"]
[Round "5.8"]
[White "Agarwal, Pranav"]
[Black "Ponomarev, Ivan"]
[Result "0-1"]
[TimeControl "90min + 30sec/move"]
[WhiteElo "1531"]
[BlackElo "1744"]

1. e3 {[%clk 01:30:56]} {[%emt 00:00:04]} d5 {[%clk 01:30:00]} {[%emt
00:01:01]} 2. c4 {[%clk 01:30:41]} {[%emt 00:00:45]} e6 {[%clk 01:28:24]}
{[%emt 00:02:06]} 3. Nf3 {[%clk 01:27:25]} {[%emt 00:03:46]} Nf6 {[%clk
01:26:49]} {[%emt 00:02:05]} 4. Nc3 {[%clk 01:26:54]} {[%emt 00:01:01]} c5
{[%clk 01:21:06]} {[%emt 00:06:13]} 5. cxd5 {[%clk 01:22:38]} {[%emt 00:04:46]}
exd5 {[%clk 01:20:06]} {[%emt 00:01:30]} 6. d4 {[%clk 01:22:34]} {[%emt
00:00:34]} Nc6 {[%clk 01:16:43]} {[%emt 00:03:52]} 7. Be2 {[%clk 01:20:38]}
{[%emt 00:02:27]} cxd4 {[%clk 01:12:47]} {[%emt 00:04:26]} 8. Nxd4 {[%clk
01:20:39]} {[%emt 00:00:29]} Bb4 {[%clk 01:07:46]} {[%emt 00:05:31]} 9. Qa4
{[%clk 01:19:33]} {[%emt 00:01:36]} Bd7 {[%clk 00:59:39]} {[%emt 00:08:37]} 10.
Nxc6 {[%clk 01:16:10]} {[%emt 00:03:53]} Bxc3+ {[%clk 00:59:45]} {[%emt
00:00:24]} 11. bxc3 {[%clk 01:16:31]} {[%emt 00:00:08]} Bxc6 {[%clk 00:59:00]}
{[%emt 00:01:15]} 12. Qb4 {[%clk 01:15:23]} {[%emt 00:01:38]} a5 {[%clk
00:51:54]} {[%emt 00:07:37]} 13. Qa3 {[%clk 01:13:59]} {[%emt 00:01:54]} Qe7
{[%clk 00:43:33]} {[%emt 00:08:51]} 14. Qxe7+ {[%clk 01:12:47]} {[%emt
00:01:41]} Kxe7 {[%clk 00:43:59]} {[%emt 00:00:05]} 15. Ba3+ {[%clk 01:13:10]}
{[%emt 00:00:08]} Kd7 {[%clk 00:42:22]} {[%emt 00:02:06]} 16. f3 {[%clk
01:12:47]} {[%emt 00:00:53]} Rhe8 {[%clk 00:40:53]} {[%emt 00:01:57]} 17. Kf2
{[%clk 01:12:26]} {[%emt 00:00:53]} Kc7 {[%clk 00:34:44]} {[%emt 00:06:38]} 18.
Bc5 {[%clk 01:08:48]} {[%emt 00:04:09]} Nd7 {[%clk 00:32:39]} {[%emt 00:02:35]}
19. Bd4 {[%clk 01:09:00]} {[%emt 00:00:17]} f6 {[%clk 00:31:47]} {[%emt
00:01:22]} 20. Rab1 {[%clk 01:04:30]} {[%emt 00:05:02]} Re6 {[%clk 00:26:59]}
{[%emt 00:05:17]} 21. c4 {[%clk 00:53:56]} {[%emt 00:11:04]} dxc4 {[%clk
00:24:48]} {[%emt 00:02:40]} 22. Bxc4 {[%clk 00:53:04]} {[%emt 00:01:22]} Re7
{[%clk 00:20:51]} {[%emt 00:04:25]} 23. Rhc1 {[%clk 00:48:59]} {[%emt
00:04:37]} Rae8 {[%clk 00:17:16]} {[%emt 00:04:06]} 24. Rb3 {[%clk 00:43:39]}
{[%emt 00:05:50]} a4 {[%clk 00:11:49]} {[%emt 00:05:58]} 25. Rb4 {[%clk
00:37:53]} {[%emt 00:06:16]} Ne5 {[%clk 00:10:11]} {[%emt 00:02:06]} 26. Bb5
{[%clk 00:33:41]} {[%emt 00:04:42]} Ra8 {[%clk 00:08:41]} {[%emt 00:02:00]} 27.
Be2 {[%clk 00:29:13]} {[%emt 00:04:59]} Kd8 {[%clk 00:05:48]} {[%emt 00:03:20]}
28. f4 {[%clk 00:28:30]} {[%emt 00:01:15]} Nd7 {[%clk 00:05:42]} {[%emt
00:00:37]} 29. Rd1 {[%clk 00:28:09]} {[%emt 00:00:50]} Ke8 {[%clk 00:05:02]}
{[%emt 00:01:10]} 30. Bh5+ {[%clk 00:27:44]} {[%emt 00:00:56]} g6 {[%clk
00:04:56]} {[%emt 00:00:36]} 31. Be2 {[%clk 00:27:49]} {[%emt 00:00:25]} Kf7
{[%clk 00:03:47]} {[%emt 00:01:39]} 32. Bc4+ {[%clk 00:28:02]} {[%emt
00:00:17]} Kg7 {[%clk 00:04:02]} {[%emt 00:00:14]} 33. g4 {[%clk 00:28:22]}
{[%emt 00:00:11]} h6 {[%clk 00:02:42]} {[%emt 00:01:50]} 34. h4 {[%clk
00:28:43]} {[%emt 00:00:09]} Kh7 {[%clk 00:02:16]} {[%emt 00:00:55]} 35. h5
{[%clk 00:24:00]} {[%emt 00:05:14]} gxh5 {[%clk 00:01:42]} {[%emt 00:01:04]} 36.
Bd3+ {[%clk 00:24:15]} {[%emt 00:00:17]} Kh8 {[%clk 00:01:18]} {[%emt
00:00:53]} 37. g5 {[%clk 00:23:59]} {[%emt 00:00:46]} hxg5 {[%clk 00:01:25]}
{[%emt 00:00:22]} 38. fxg5 {[%clk 00:24:21]} {[%emt 00:00:08]} Ne5 {[%clk
00:01:02]} {[%emt 00:00:54]} 39. Be2 {[%clk 00:21:45]} {[%emt 00:03:06]} fxg5
{[%clk 00:00:45]} {[%emt 00:00:47]} 40. Rg1 {[%clk 00:21:33]} {[%emt 00:00:42]}
Rf8+ {[%clk 00:00:45]} {[%emt 00:00:30]} 41. Ke1 {[%clk 00:21:54]} {[%emt
00:00:09]} g4 {[%clk 00:00:46]} {[%emt 00:00:29]} 42. Bc5 {[%clk 00:18:33]}
{[%emt 00:03:51]} Nf3+ {[%clk 00:00:51]} {[%emt 00:00:25]} 43. Kf2 {[%clk
00:12:24]} {[%emt 00:06:38]} Nxg1+ {[%clk 00:00:58]} {[%emt 00:00:24]} 44. Kxg1
{[%clk 00:12:27]} {[%emt 00:00:26]} Ref7 {[%clk 00:01:18]} {[%emt 00:00:10]} 45.
Rd4 {[%clk 00:10:41]} {[%emt 00:02:16]} Re8 {[%clk 00:00:59]} {[%emt 00:00:49]}
46. Rd6 {[%clk 00:10:53]} {[%emt 00:00:18]} Kh7 {[%clk 00:00:51]} {[%emt
00:00:38]} 47. Bd3+ {[%clk 00:07:07]} {[%emt 00:04:16]} Be4 {[%clk 00:00:59]}
{[%emt 00:00:21]} 48. Bc4 {[%clk 00:07:30]} {[%emt 00:00:09]} Rc7 {[%clk
00:00:43]} {[%emt 00:00:46]} 49. Bb5 {[%clk 00:07:44]} {[%emt 00:00:16]} Rec8
{[%clk 00:00:47]} {[%emt 00:00:24]} 50. Bd4 {[%clk 00:07:42]} {[%emt 00:00:34]}
Rc1+ {[%clk 00:01:04]} {[%emt 00:00:13]} 51. Kf2 {[%clk 00:08:02]} {[%emt
00:00:09]} Rf8+ {[%clk 00:01:02]} {[%emt 00:00:33]} 52. Kg3 {[%clk 00:08:08]}
{[%emt 00:00:24]} Rg1+ {[%clk 00:01:03]} {[%emt 00:00:29]} 53. Kh4 {[%clk
00:07:59]} {[%emt 00:00:39]} Rh1+ {[%clk 00:01:02]} {[%emt 00:00:31]} 54. Kg5
{[%clk 00:08:24]} {[%emt 00:00:04]} Rf5# {[%clk 00:01:25]} {[%emt 00:00:07]}
0-1

[Event "NJSK 2022 Jeugd C"]
[Site "Almelo, Netherlands"]
[Date "2022.05.04"]
[Round "5.9"]
[White "Lopes, Samuel"]
[Black "Mohebbinezhad, Parsa"]
[Result "1-0"]
[TimeControl "90min + 30sec/move"]
[WhiteElo "1600"]
[BlackElo "1600"]

1. e4 {[%clk 01:30:57]} {[%emt 00:00:03]} c6 {[%clk 01:30:55]} {[%emt
00:00:06]} 2. d4 {[%clk 01:31:24]} {[%emt 00:00:04]} d5 {[%clk 01:31:22]}
{[%emt 00:00:02]} 3. exd5 {[%clk 01:31:49]} {[%emt 00:00:05]} cxd5 {[%clk
01:31:49]} {[%emt 00:00:03]} 4. Bd3 {[%clk 01:32:12]} {[%emt 00:00:07]} Nf6
{[%clk 01:32:14]} {[%emt 00:00:06]} 5. c3 {[%clk 01:32:35]} {[%emt 00:00:06]}
Nc6 {[%clk 01:32:39]} {[%emt 00:00:05]} 6. Bf4 {[%clk 01:32:58]} {[%emt
00:00:07]} Bg4 {[%clk 01:32:52]} {[%emt 00:00:17]} 7. Qb3 {[%clk 01:33:22]}
{[%emt 00:00:07]} Qd7 {[%clk 01:32:30]} {[%emt 00:00:52]} 8. Nd2 {[%clk
01:33:43]} {[%emt 00:00:07]} Nh5 {[%clk 01:32:22]} {[%emt 00:00:38]} 9. Be3
{[%clk 01:33:39]} {[%emt 00:00:34]} Qc7 {[%clk 01:31:08]} {[%emt 00:01:45]} 10.
f3 {[%clk 01:27:25]} {[%emt 00:06:44]} Bd7 {[%clk 01:30:03]} {[%emt 00:01:36]}
11. Qxd5 {[%clk 01:26:40]} {[%emt 00:01:14]} Nf6 {[%clk 01:29:17]} {[%emt
00:01:16]} 12. Qb3 {[%clk 01:26:05]} {[%emt 00:01:05]} Na5 {[%clk 01:29:00]}
{[%emt 00:00:48]} 13. Qc2 {[%clk 01:25:48]} {[%emt 00:00:47]} e6 {[%clk
01:28:37]} {[%emt 00:00:52]} 14. Ne2 {[%clk 01:25:11]} {[%emt 00:01:07]} Bd6
{[%clk 01:27:56]} {[%emt 00:01:11]} 15. g3 {[%clk 01:23:15]} {[%emt 00:02:26]}
b6 {[%clk 01:25:07]} {[%emt 00:03:20]} 16. Ne4 {[%clk 01:20:05]} {[%emt
00:03:40]} Nd5 {[%clk 01:22:29]} {[%emt 00:03:07]} 17. Nxd6+ {[%clk 01:19:53]}
{[%emt 00:00:42]} Qxd6 {[%clk 01:22:51]} {[%emt 00:00:09]} 18. Bf4 {[%clk
01:19:15]} {[%emt 00:01:07]} Nxf4 {[%clk 01:21:19]} {[%emt 00:02:02]} 19. Nxf4
{[%clk 01:19:38]} {[%emt 00:00:08]} h6 {[%clk 01:18:44]} {[%emt 00:03:04]} 20.
Nh5 {[%clk 01:16:03]} {[%emt 00:04:05]} O-O {[%clk 01:17:40]} {[%emt 00:01:34]}
21. O-O {[%clk 01:15:23]} {[%emt 00:01:10]} Nc6 {[%clk 01:17:14]} {[%emt
00:00:56]} 22. f4 {[%clk 01:13:22]} {[%emt 00:02:32]} f5 {[%clk 00:58:16]}
{[%emt 00:19:27]} 23. g4 {[%clk 01:05:45]} {[%emt 00:08:07]} fxg4 {[%clk
00:58:15]} {[%emt 00:00:31]} 24. Be2 {[%clk 00:56:37]} {[%emt 00:09:38]} Be8
{[%clk 00:52:21]} {[%emt 00:06:24]} 25. Bxg4 {[%clk 00:55:44]} {[%emt
00:01:23]} Bxh5 {[%clk 00:52:30]} {[%emt 00:00:21]} 26. Bxh5 {[%clk 00:56:06]}
{[%emt 00:00:08]} Rxf4 {[%clk 00:52:19]} {[%emt 00:00:41]} 27. Rxf4 {[%clk
00:51:08]} {[%emt 00:05:28]} Qxf4 {[%clk 00:52:37]} {[%emt 00:00:13]} 28. Qg2
{[%clk 00:50:40]} {[%emt 00:00:57]} Rc8 {[%clk 00:52:08]} {[%emt 00:00:59]} 29.
Rf1 {[%clk 00:50:33]} {[%emt 00:00:37]} Qe3+ {[%clk 00:51:44]} {[%emt
00:00:54]} 30. Kh1 {[%clk 00:50:46]} {[%emt 00:00:17]} Kh8 {[%clk 00:44:32]}
{[%emt 00:07:42]} 31. Bg6 {[%clk 00:45:38]} {[%emt 00:05:38]} Kg8 {[%clk
00:40:00]} {[%emt 00:05:02]} 32. Rg1 {[%clk 00:43:09]} {[%emt 00:02:59]} e5
{[%clk 00:38:21]} {[%emt 00:02:09]} 33. Bh7+ {[%clk 00:33:06]} {[%emt
00:10:30]} Kf7 {[%clk 00:35:52]} {[%emt 00:03:01]} 34. Qxg7+ {[%clk 00:33:15]}
Ke8 {[%clk 00:34:33]} {[%emt 00:02:11]} 35. Qg8+ {[%clk 00:33:12]} {[%emt
00:00:32]} Ke7 {[%clk 00:33:43]} {[%emt 00:01:20]} 36. Rg7+ {[%clk 00:24:30]}
{[%emt 00:09:12]} Kd6 {[%clk 00:33:51]} {[%emt 00:00:23]} 37. Rg6+ {[%clk
00:24:45]} {[%emt 00:00:13]} Kc7 {[%clk 00:29:58]} {[%emt 00:04:24]} 38. Rxc6+
{[%clk 00:24:34]} {[%emt 00:00:41]} Kxc6 {[%clk 00:30:21]} {[%emt 00:00:07]} 39.
Qxc8+ {[%clk 00:24:56]} {[%emt 00:00:08]} Kb5 {[%clk 00:30:25]} {[%emt
00:00:26]} 40. a4+ {[%clk 00:23:56]} {[%emt 00:01:31]} Kxa4 {[%clk 00:28:48]}
{[%emt 00:02:06]} 41. Qc4+ {[%clk 00:24:04]} {[%emt 00:00:21]} Ka5 {[%clk
00:29:02]} {[%emt 00:00:17]} 42. b4+ {[%clk 00:24:18]} {[%emt 00:00:17]} Ka4
{[%clk 00:29:16]} {[%emt 00:00:16]} 43. Bc2+ {[%emt 00:00:37]} 1-0